fUSD/lending_fUSD_20240620
["ID","MTS","AMOUNT","RATE_DAILY","PERIOD"]
[329937013,1718848235627,-500.0,0.00013698,2]
[329937014,1718848235637,-522.41792675,0.00013698,2]
[329937015,1718848235646,-500.0,0.00013698,2]
[329937016,1718848235656,-501.85887559,0.00013698,2]
[329937017,1718848235665,-502.60297496,0.00013698,2]
[329937018,1718848235675,-500.0,0.00013698,2]
[329937019,1718848235686,-510.03692532,0.00013698,2]
[329937020,1718848235695,-500.0,0.00013698,2]
[329937021,1718848235706,-597.61,0.00013698,2]
[329937022,1718848235717,-516.86,0.00013698,2]
[329937023,1718848235727,-207.67283181,0.00013698,2]
[329937024,1718848235736,-918.26049783,0.00013698,2]
[329937025,1718848235746,-521.07,0.00013698,2]
[329937026,1718848235756,-502.21220102,0.00013698,2]
[329937027,1718848235765,-502.60564537,0.00013698,2]
[329937028,1718848235775,-500.9116733,0.00013698,2]
[329937029,1718848235790,-501.13722383,0.00013698,2]
[329937030,1718848235799,-500.0,0.00013698,2]
[329937031,1718848235809,-500.69178775,0.00013698,2]
[329937032,1718848235818,-628.22,0.00013698,2]
[329937033,1718848235827,-537.59141887,0.00013698,2]
[329937034,1718848235837,-521.4,0.00013698,2]
[329937035,1718848235846,-500.0,0.00013698,2]
[329937036,1718848235856,-517.96971788,0.00013698,2]
[329937037,1718848235865,-506.50158368,0.00013698,2]
[329937038,1718848235875,-502.12572504,0.00013698,2]
[329937039,1718848235885,-510.94490052,0.00013698,2]
[329937040,1718848235895,-501.88927953,0.00013698,2]
[329937041,1718848235906,-502.27260466,0.00013698,2]
[329937042,1718848235916,-500.0,0.00013698,2]
[329937043,1718848235928,-500.0,0.00013698,2]
[329937044,1718848235939,-502.31201369,0.00013698,2]
[329937045,1718848235949,-501.72298216,0.00013698,2]
[329937046,1718848235959,-500.0,0.00013698,2]
[329937047,1718848235970,-500.0,0.00013698,2]
[329937048,1718848235979,-500.0,0.00013698,2]
[329937049,1718848235989,-500.0,0.00013698,2]
[329937050,1718848235998,-501.52204551,0.00013698,2]
[329937051,1718848236009,-502.79292475,0.00013698,2]
[329937052,1718848236019,-511.45479245,0.00013698,2]
[329937053,1718848236032,-500.0,0.00013698,2]
[329937054,1718848236041,-640.4323099,0.00013698,2]
[329937055,1718848236050,-510.61258089,0.00013698,2]
[329937056,1718848236059,-501.43763562,0.00013698,2]
[329937057,1718848236068,-595.99,0.00013698,2]
[329937058,1718848236078,-537.73983795,0.00013698,2]
[329937059,1718848236087,-623.67,0.00013698,2]
[329937060,1718848236096,-508.90031931,0.00013698,2]
[329937061,1718848236106,-500.0,0.00013698,2]
[329937062,1718848236115,-500.0,0.00013698,2]
[329937063,1718848236124,-501.26677167,0.00013698,2]
[329937064,1718848236134,-502.02276295,0.00013698,2]
[329937065,1718848236145,-509.098034,0.00013698,2]
[329937066,1718848236154,-505.35669642,0.00013698,2]
[329937067,1718848236163,-500.66301898,0.00013698,2]
[329937068,1718848236172,-660.75,0.00013698,2]
[329937069,1718848236184,-506.69136181,0.00013698,2]
[329937070,1718848236194,-505.41402201,0.00013698,2]
[329937071,1718848236204,-501.78931906,0.00013698,2]
[329937072,1718848236214,-506.07749823,0.00013698,2]
[329937073,1718848236224,-500.57994051,0.00013698,2]
[329937074,1718848236234,-504.72455265,0.00013698,2]
[329937075,1718848236244,-500.0,0.00013698,2]
[329937076,1718848236256,-507.53119492,0.00013698,2]
[329937077,1718848236265,-528.35257596,0.00013698,2]
[329937078,1718848236275,-500.62522337,0.00013698,2]
[329937079,1718848236287,-506.44237785,0.00013698,2]
[329937080,1718848236296,-508.73594016,0.00013698,2]
[329937081,1718848236306,-502.43045735,0.00013698,2]
[329937082,1718848236315,-502.98894597,0.00013698,2]
[329937083,1718848236325,-511.96048626,0.00013698,2]
[329937084,1718848236334,-528.65139851,0.00013698,2]
[329937085,1718848236344,-500.0,0.00013698,2]
[329937086,1718848236354,-500.50671999,0.00013698,2]
[329937087,1718848236363,-651.92,0.00013698,2]
[329937088,1718848236373,-500.0,0.00013698,2]
[329937089,1718848236382,-503.01828902,0.00013698,2]
[329937090,1718848236392,-500.58903529,0.00013698,2]
[329937091,1718848236402,-502.46447797,0.00013698,2]
[329937092,1718848236412,-502.37475016,0.00013698,2]
[329937093,1718848236422,-504.26351098,0.00013698,2]
[329937094,1718848236431,-535.47684415,0.00013698,2]
[329937095,1718848236442,-337.97032522,0.00013698,2]
[329937096,1718848236452,-500.0,0.00013698,2]
[329937097,1718848236468,-500.35646066,0.00013698,2]
[329937098,1718848236477,-501.90194608,0.00013698,2]
[329937099,1718848236487,-504.11165039,0.00013698,2]
[329937100,1718848236497,-500.0,0.00013698,2]
[329937101,1718848236507,-556.77,0.00013698,2]
[329937102,1718848236517,-501.61258325,0.00013698,2]
[329937103,1718848236530,-501.06532022,0.00013698,2]
[329937104,1718848236541,-500.93787382,0.00013698,2]
[329937105,1718848236551,-500.0,0.00013698,2]
[329937106,1718848236562,-507.05045384,0.00013698,2]
[329937107,1718848236571,-503.39473324,0.00013698,2]
[329937108,1718848236581,-523.63909419,0.00013698,2]
[329937109,1718848236591,-500.0,0.00013698,2]
[329937110,1718848236601,-504.93381664,0.00013698,2]
[329937111,1718848236611,-500.54135711,0.00013698,2]
[329937112,1718848236622,-500.0,0.00013698,2]
[329937113,1718848236631,-501.97122184,0.00013698,2]
[329937114,1718848236641,-500.40784918,0.00013698,2]
[329937115,1718848236651,-537.33,0.00013698,2]
[329937116,1718848236661,-500.0,0.00013698,2]
[329937117,1718848236671,-500.0,0.00013698,2]
[329937118,1718848236681,-618.88,0.00013698,2]
[329937119,1718848236691,-500.98343279,0.00013698,2]
[329937120,1718848236701,-502.19290557,0.00013698,2]
[329937121,1718848236710,-504.93328998,0.00013698,2]
[329937122,1718848236720,-798.77,0.00013698,2]
[329937123,1718848236730,-505.78503197,0.00013698,2]
[329937124,1718848236739,-609.27490685,0.00013698,2]
[329937125,1718848236749,-502.9527955,0.00013698,2]
[329937126,1718848236758,-500.0,0.00013698,2]
[329937127,1718848236768,-500.0,0.00013698,2]
[329937128,1718848236780,-500.0,0.00013698,2]
[329937129,1718848236790,-500.0,0.00013698,2]
[329937130,1718848236800,-503.90814365,0.00013698,2]
[329937131,1718848236811,-507.02434428,0.00013698,2]
[329937132,1718848236821,-603.20487714,0.00013698,2]
[329937133,1718848236830,-503.43243623,0.00013698,2]
[329937134,1718848236840,-158.44386869,0.00013698,2]
[329937135,1718848236849,-506.63227577,0.00013698,2]
[329937136,1718848236860,-503.37421537,0.00013698,2]
[329937137,1718848236870,-503.33602154,0.00013698,2]
[329937138,1718848236879,-500.0,0.00013698,2]
[329937139,1718848236889,-531.37568848,0.00013698,2]
[329937140,1718848236899,-500.0,0.00013698,2]
[329937141,1718848236909,-500.0,0.00013698,2]
[329937142,1718848236919,-500.66236121,0.00013698,2]
[329937143,1718848236929,-505.97807378,0.00013698,2]
[329937144,1718848236938,-503.40840185,0.00013698,2]
[329937145,1718848236948,-500.0,0.00013698,2]
[329937146,1718848236960,-500.0,0.00013698,2]
[329937147,1718848236970,-501.55714888,0.00013698,2]
[329937148,1718848236980,-500.97750801,0.00013698,2]
[329937149,1718848236990,-504.70270295,0.00013698,2]
[329937150,1718848237000,-503.74311271,0.00013698,2]
[329937151,1718848237010,-743.96,0.00013698,2]
[329937152,1718848237019,-503.01821559,0.00013698,2]
[329937153,1718848237031,-500.0,0.00013698,2]
[329937154,1718848237041,-518.18,0.00013698,2]
[329937155,1718848237051,-608.31549778,0.00013698,2]
[329937156,1718848237061,-500.0,0.00013698,2]
[329937157,1718848237072,-502.19342149,0.00013698,2]
[329937158,1718848237082,-504.19837634,0.00013698,2]
[329937159,1718848237092,-503.79719549,0.00013698,2]
[329937160,1718848237101,-701.86,0.00013698,2]
[329937161,1718848237111,-507.25063417,0.00013698,2]
[329937162,1718848237123,-509.07776674,0.00013698,2]
[329937163,1718848237132,-546.13,0.00013698,2]
[329937164,1718848237141,-500.0,0.00013698,2]
[329937165,1718848237151,-500.35238404,0.00013698,2]
[329937166,1718848237161,-517.36,0.00013698,2]
[329937167,1718848237171,-530.68926008,0.00013698,2]
[329937168,1718848237181,-508.560229,0.00013698,2]
[329937169,1718848237191,-945.3,0.00013698,2]
[329937170,1718848237200,-500.0,0.00013698,2]
[329937171,1718848237210,-504.78904643,0.00013698,2]
[329937172,1718848237220,-501.21625005,0.00013698,2]
[329937173,1718848237229,-502.55947761,0.00013698,2]
[329937174,1718848237238,-503.42640201,0.00013698,2]
[329937175,1718848237248,-500.73039328,0.00013698,2]
[329937176,1718848237257,-733.12,0.00013698,2]
[329937177,1718848237267,-502.86936214,0.00013698,2]
[329937178,1718848237276,-504.35106466,0.00013698,2]
[329937179,1718848237288,-500.9521941,0.00013698,2]
[329937180,1718848237298,-503.06703067,0.00013698,2]
[329937181,1718848237307,-500.0,0.00013698,2]
[329937182,1718848237317,-508.15958505,0.00013698,2]
[329937183,1718848237326,-501.02811842,0.00013698,2]
[329937184,1718848237336,-505.05436497,0.00013698,2]
[329937185,1718848237345,-506.39328693,0.00013698,2]
[329937186,1718848237355,-507.66817893,0.00013698,2]
[329937187,1718848237365,-553.84,0.00013698,2]
[329937188,1718848237374,-500.0,0.00013698,2]
[329937189,1718848237384,-1095.08,0.00013698,2]
[329937190,1718848237394,-501.014001,0.00013698,2]
[329937191,1718848237404,-507.94548213,0.00013698,2]
[329937192,1718848237414,-500.0,0.00013698,2]
[329937193,1718848237423,-505.51613677,0.00013698,2]
[329937194,1718848237434,-507.44523279,0.00013698,2]
[329937195,1718848237443,-500.0,0.00013698,2]
[329937196,1718848237453,-507.17465207,0.00013698,2]
[329937197,1718848237463,-501.29152246,0.00013698,2]
[329937198,1718848237474,-505.43077387,0.00013698,2]
[329937199,1718848237484,-500.0,0.00013698,2]
[329937200,1718848237494,-500.0,0.00013698,2]
[329937201,1718848237505,-500.0,0.00013698,2]
[329937202,1718848237515,-500.0,0.00013698,2]
[329937203,1718848237525,-502.04457224,0.00013698,2]
[329937204,1718848237536,-503.37525683,0.00013698,2]
[329937205,1718848237547,-501.41252271,0.00013698,2]
[329937206,1718848237558,-502.40623619,0.00013698,2]
[329937207,1718848237568,-500.47414646,0.00013698,2]
[329937208,1718848237578,-544.39678221,0.00013698,2]
[329937209,1718848237587,-506.72021471,0.00013698,2]
[329937210,1718848237597,-500.44740738,0.00013698,2]
[329937211,1718848237607,-504.65032168,0.00013698,2]
[329937212,1718848237616,-504.32224229,0.00013698,2]
[329937213,1718848237626,-504.08372794,0.00013698,2]
[329937214,1718848237635,-501.6958429,0.00013698,2]
[329937215,1718848237645,-504.83932349,0.00013698,2]
[329937216,1718848237655,-500.0,0.00013698,2]
[329937217,1718848237665,-505.70064234,0.00013698,2]
[329937218,1718848237675,-513.68226581,0.00013698,2]
[329937219,1718848237684,-505.66227378,0.00013698,2]
[329937220,1718848237694,-501.43807132,0.00013698,2]
[329937221,1718848237703,-504.76384794,0.00013698,2]
[329937222,1718848237713,-500.0,0.00013698,2]
[329937223,1718848237722,-602.43654497,0.00013698,2]
[329937224,1718848237732,-502.79860711,0.00013698,2]
[329937225,1718848237742,-253.05292795,0.00013698,2]
[329937226,1718848237751,-501.34344253,0.00013698,2]
[329937227,1718848237761,-509.37548345,0.00013698,2]
[329937228,1718848237771,-529.65,0.00013698,2]
[329937229,1718848237782,-563.53,0.00013698,2]
[329937230,1718848237791,-505.01793654,0.00013698,2]
[329937231,1718848237801,-507.91412762,0.00013698,2]
[329937232,1718848237811,-503.68455362,0.00013698,2]
[329937233,1718848237820,-500.0,0.00013698,2]
[329937234,1718848237831,-505.53472594,0.00013698,2]
[329937235,1718848237841,-500.0,0.00013698,2]
[329937236,1718848237851,-500.0,0.00013698,2]
[329937237,1718848237860,-500.0,0.00013698,2]
[329937238,1718848237870,-505.37027242,0.00013698,2]
[329937239,1718848237880,-500.58188387,0.00013698,2]
[329937240,1718848237889,-514.72695517,0.00013698,2]
[329937241,1718848237899,-500.0,0.00013698,2]
[329937242,1718848237909,-500.0,0.00013698,2]
[329937243,1718848237919,-502.39884222,0.00013698,2]
[329937244,1718848237929,-778.57,0.00013698,2]
[329937245,1718848237941,-500.0,0.00013698,2]
[329937246,1718848237951,-505.12878837,0.00013698,2]
[329937247,1718848237960,-547.81863261,0.00013698,2]
[329937248,1718848237970,-500.0,0.00013698,2]
[329937249,1718848237979,-453.18720707,0.00013698,2]
[329937250,1718848237989,-502.95835973,0.00013698,2]
[329937251,1718848237999,-502.48832671,0.00013698,2]
[329937252,1718848238008,-500.0,0.00013698,2]
[329937253,1718848238018,-500.67024734,0.00013698,2]
[329937254,1718848238030,-665.61,0.00013698,2]
[329937255,1718848238039,-505.69043711,0.00013698,2]
[329937256,1718848238049,-506.20353736,0.00013698,2]
[329937257,1718848238058,-512.26115525,0.00013698,2]
[329937258,1718848238068,-506.23965549,0.00013698,2]
[329937259,1718848238077,-501.75169704,0.00013698,2]
[329937260,1718848238087,-250.09281622,0.00013698,2]
[329937261,1718848238096,-502.04415063,0.00013698,2]
[329937262,1718848238106,-657.46,0.00013698,2]
[329937263,1718848238115,-511.29124528,0.00013698,2]
[329937264,1718848238125,-500.0,0.00013698,2]
[329937265,1718848238135,-500.55467302,0.00013698,2]
[329937266,1718848238144,-1470.06,0.00013698,2]
[329937267,1718848238154,-501.86850248,0.00013698,2]
[329937268,1718848238163,-418.92092642,0.00013698,2]
[329937269,1718848238173,-576.35,0.00013698,2]
[329937270,1718848238182,-501.79503507,0.00013698,2]
[329937271,1718848238191,-501.53417902,0.00013698,2]
[329937272,1718848238201,-500.84854859,0.00013698,2]
[329937273,1718848238211,-502.06629262,0.00013698,2]
[329937274,1718848238220,-500.0,0.00013698,2]
[329937275,1718848238230,-500.0,0.00013698,2]
[329937276,1718848238239,-500.0,0.00013698,2]
[329937277,1718848238248,-613.99854599,0.00013698,2]
[329937278,1718848238258,-500.32778652,0.00013698,2]
[329937279,1718848238267,-506.47514206,0.00013698,2]
[329937280,1718848238277,-500.0,0.00013698,2]
[329937281,1718848238288,-502.07628093,0.00013698,2]
[329937282,1718848238297,-500.0,0.00013698,2]
[329937283,1718848238307,-500.0,0.00013698,2]
[329937284,1718848238316,-500.0,0.00013698,2]
[329937285,1718848238326,-1184.54,0.00013698,2]
[329937287,1718848238335,-500.0,0.00013698,2]
[329937289,1718848238345,-319.35683376,0.00013698,2]
[329937291,1718848238355,-1628.54,0.00013698,2]
[329937294,1718848238364,-500.0,0.00013698,2]
[329937296,1718848238373,-505.46585403,0.00013698,2]
[329937297,1718848238384,-234.43053472,0.00013698,2]
[329937300,1718848238428,-266.18514091,0.00013698,2]
[329937301,1718848238438,-1171.3,0.00013698,2]
[329937302,1718848238448,-500.0,0.00013698,2]
[329937303,1718848238457,-335.00573053,0.00013698,2]
[329937306,1718848240420,-6057.17263617,0.00013697,2]
[329937307,1718848240431,-5897.54736383,0.00013697,2]
[329937308,1718848240441,-3010.2966541,0.00013697,2]
[329937309,1718848240536,-323.8635894,0.00013697,2]
[329937310,1718848240596,-6560.0,0.00013697,2]
[329937311,1718848240609,-807.17588612,0.00013697,2]
[329937312,1718848240621,-1253.38387038,0.00013697,2]
[329937313,1718848240631,-5071.91377459,0.00013697,2]
[329937314,1718848240642,-6882.80622541,0.00013697,2]
[329937315,1718848240652,-11954.72,0.00013697,2]
[329937316,1718848240661,-11954.72,0.00013697,2]
[329937317,1718848240670,-11954.72,0.00013697,2]
[329937318,1718848240680,-8458.62573117,0.00013697,2]
[329937319,1718848240692,-716.80329588,0.00013697,2]
[329937320,1718848240703,-1274.25252714,0.00013697,2]
[329937321,1718848240714,-1017.13590181,0.00013697,2]
[329937322,1718848240726,-487.902544,0.00013697,2]
[329937323,1718848240735,-2510.69074999,0.00013697,2]
[329937324,1718848240747,-1658.84825816,0.00013697,2]
[329937347,1718848241320,-897.73599329,0.00013697,2]
[329937361,1718848241447,-6887.44499856,0.00013697,2]
[329937363,1718848241458,-11954.72,0.00013697,2]
[329937365,1718848241475,-11954.72,0.00013697,2]
[329937367,1718848241487,-11954.72,0.00013697,2]
[329937369,1718848241496,-11954.91653976,0.00013697,2]
[329937371,1718848241507,-166.59162312,0.00013698,2]
[329937373,1718848241516,-500.0,0.00013698,2]
[329937375,1718848241525,-507.0010481,0.00013698,2]
[329937377,1718848241537,-502.73871808,0.00013698,2]
[329937379,1718848241546,-500.0,0.00013698,2]
[329937381,1718848241555,-500.0,0.00013698,2]
[329937383,1718848241564,-502.92660887,0.00013698,2]
[329937385,1718848241575,-500.0,0.00013698,2]
[329937387,1718848241585,-501.72582518,0.00013698,2]
[329937389,1718848241594,-500.0,0.00013698,2]
[329937391,1718848241604,-507.08148278,0.00013698,2]
[329937393,1718848241613,-501.89662652,0.00013698,2]
[329937395,1718848241623,-491.61305326,0.00013698,2]
[329937397,1718848241632,-568.83,0.00013698,2]
[329937400,1718848241646,-511.65885984,0.00013698,2]
[329937402,1718848241655,-508.8390588,0.00013698,2]
[329937404,1718848241665,-502.1744319,0.00013698,2]
[329937406,1718848241675,-501.02729305,0.00013698,2]
[329937408,1718848241684,-502.51381242,0.00013698,2]
[329937410,1718848241693,-503.54333077,0.00013698,2]
[329937412,1718848241703,-504.30652326,0.00013698,2]
[329937414,1718848241713,-575.18,0.00013698,2]
[329937416,1718848241722,-502.30922755,0.00013698,2]
[329937418,1718848241731,-456.43309558,0.00013698,2]
[329937419,1718848241740,-500.0,0.00013698,2]
[329937420,1718848241749,-637.65,0.00013698,2]
[329937421,1718848241759,-582.56510134,0.00013698,2]
[329937422,1718848241772,-506.84618659,0.00013698,2]
[329937423,1718848241786,-501.68843942,0.00013698,2]
[329937424,1718848241796,-622.63,0.00013698,2]
[329937425,1718848241806,-510.15990608,0.00013698,2]
[329937426,1718848241816,-784.78,0.00013698,2]
[329937427,1718848241826,-722.71,0.00013698,2]
[329937428,1718848241835,-506.61525714,0.00013698,2]
[329937429,1718848241845,-500.0,0.00013698,2]
[329937430,1718848241855,-518.32085541,0.00013698,2]
[329937431,1718848241864,-503.62788029,0.00013698,2]
[329937432,1718848241874,-500.0,0.00013698,2]
[329937433,1718848241883,-500.46620816,0.00013698,2]
[329937434,1718848241893,-512.30524921,0.00013698,2]
[329937435,1718848241903,-640.11,0.00013698,2]
[329937436,1718848241914,-563.09,0.00013698,2]
[329937437,1718848241923,-500.19231994,0.00013698,2]
[329937438,1718848241933,-500.0,0.00013698,2]
[329937439,1718848241943,-505.03354815,0.00013698,2]
[329937440,1718848241952,-501.57280605,0.00013698,2]
[329937441,1718848241962,-891.36,0.00013698,2]
[329937442,1718848241971,-501.5867136,0.00013698,2]
[329937443,1718848241980,-373.52386963,0.00013698,2]
[329937444,1718848241990,-501.6694798,0.00013698,2]
[329937445,1718848241999,-507.67932775,0.00013698,2]
[329937446,1718848242010,-500.0,0.00013698,2]
[329937447,1718848242020,-501.04502374,0.00013698,2]
[329937448,1718848242033,-500.16308621,0.00013698,2]
[329937449,1718848242044,-551.37320636,0.00013698,2]
[329937450,1718848242054,-504.8256531,0.00013698,2]
[329937451,1718848242063,-503.18235812,0.00013698,2]
[329937452,1718848242073,-501.92552708,0.00013698,2]
[329937453,1718848242082,-613.65,0.00013698,2]
[329937454,1718848242091,-1277.32,0.00013698,2]
[329937455,1718848242100,-507.93624996,0.00013698,2]
[329937456,1718848242110,-551.13106532,0.00013698,2]
[329937457,1718848242119,-510.42677781,0.00013698,2]
[329937458,1718848242130,-503.27235501,0.00013698,2]
[329937459,1718848242140,-501.19601909,0.00013698,2]
[329937460,1718848242150,-504.0929541,0.00013698,2]
[329937461,1718848242159,-556.98441396,0.00013698,2]
[329937462,1718848242168,-504.32733049,0.00013698,2]
[329937463,1718848242178,-500.88343765,0.00013698,2]
[329937464,1718848242187,-952.59,0.00013698,2]
[329937465,1718848242197,-500.0,0.00013698,2]
[329937466,1718848242208,-500.47196871,0.00013698,2]
[329937467,1718848242218,-509.11322654,0.00013698,2]
[329937468,1718848242227,-500.0,0.00013698,2]
[329937469,1718848242237,-501.24152073,0.00013698,2]
[329937470,1718848242248,-500.0,0.00013698,2]
[329937471,1718848242259,-504.68335563,0.00013698,2]
[329937472,1718848242268,-504.62745709,0.00013698,2]
[329937473,1718848242278,-560.15,0.00013698,2]
[329937474,1718848242290,-561.71,0.00013698,2]
[329937475,1718848242299,-564.26806401,0.00013698,2]
[329937476,1718848242308,-501.22224408,0.00013698,2]
[329937477,1718848242317,-503.94029012,0.00013698,2]
[329937478,1718848242326,-501.97870743,0.00013698,2]
[329937479,1718848242336,-504.9638689,0.00013698,2]
[329937480,1718848242346,-507.8453182,0.00013698,2]
[329937481,1718848242355,-500.12673192,0.00013698,2]
[329937494,1718848243131,-0.72274837,0.00013698,2]
[329937497,1718848243141,-655.68437905,0.00013698,2]
[329937501,1718848243179,-135.64562095,0.00013698,2]
[329937503,1718848243188,-502.14516824,0.00013698,2]
[329937505,1718848243198,-531.50197801,0.00013698,2]
[329937507,1718848243209,-505.66431699,0.00013698,2]
[329937508,1718848243218,-502.42372875,0.00013698,2]
[329937509,1718848243227,-502.18140593,0.00013698,2]
[329937510,1718848243237,-1002.45,0.00013698,2]
[329937511,1718848243246,-619.2,0.00013698,2]
[329937512,1718848243255,-506.38577363,0.00013698,2]
[329937513,1718848243264,-647.93,0.00013698,2]
[329937514,1718848243273,-500.0,0.00013698,2]
[329937515,1718848243286,-503.06,0.00013698,2]
[329937516,1718848243296,-503.77025995,0.00013698,2]
[329937517,1718848243305,-501.77758108,0.00013698,2]
[329937518,1718848243316,-508.05640248,0.00013698,2]
[329937519,1718848243326,-504.83461239,0.00013698,2]
[329937520,1718848243336,-500.56238182,0.00013698,2]
[329937521,1718848243346,-502.18415187,0.00013698,2]
[329937522,1718848243355,-959.43,0.00013698,2]
[329937523,1718848243365,-500.0,0.00013698,2]
[329937524,1718848243374,-504.87914809,0.00013698,2]
[329937525,1718848243383,-501.07411789,0.00013698,2]
[329937526,1718848243393,-511.3114636,0.00013698,2]
[329937532,1718848243402,-1190.36,0.00013698,2]
[329937536,1718848243413,-502.33600546,0.00013698,2]
[329937543,1718848243422,-502.76414503,0.00013698,2]
[329937549,1718848243432,-514.37,0.00013698,2]
[329937556,1718848243442,-500.0,0.00013698,2]
[329937562,1718848243451,-642.06,0.00013698,2]
[329937568,1718848243461,-502.20970123,0.00013698,2]
[329937574,1718848243471,-502.02285263,0.00013698,2]
[329937579,1718848243486,-504.18398336,0.00013698,2]
[329937584,1718848243495,-505.33979153,0.00013698,2]
[329937589,1718848243506,-510.51160096,0.00013698,2]
[329937594,1718848243516,-500.0,0.00013698,2]
[329937599,1718848243526,-502.16725833,0.00013698,2]
[329937604,1718848243540,-500.0,0.00013698,2]
[329937608,1718848243549,-949.54,0.00013698,2]
[329937613,1718848243561,-1009.26092915,0.00013698,2]
[329937617,1718848243571,-1221.25,0.00013698,2]
[329937620,1718848243580,-506.20498716,0.00013698,2]
[329937622,1718848243589,-500.0,0.00013698,2]
[329937624,1718848243598,-503.36574133,0.00013698,2]
[329937626,1718848243607,-510.97,0.00013698,2]
[329937628,1718848243616,-905.34,0.00013698,2]
[329937630,1718848243625,-508.49556536,0.00013698,2]
[329937632,1718848243634,-748.17,0.00013698,2]
[329937634,1718848243643,-501.44451733,0.00013698,2]
[329937636,1718848243654,-502.50462375,0.00013698,2]
[329937638,1718848243663,-588.37,0.00013698,2]
[329937640,1718848243674,-570.85677376,0.00013698,2]
[329937642,1718848243683,-501.64384506,0.00013698,2]
[329937644,1718848243692,-506.82169456,0.00013698,2]
[329937645,1718848243701,-503.2893614,0.00013698,2]
[329937646,1718848243711,-680.71,0.00013698,2]
[329937647,1718848243720,-502.66190525,0.00013698,2]
[329937648,1718848243729,-512.77686418,0.00013698,2]
[329937649,1718848243738,-2019.97634756,0.00013698,2]
[329937650,1718848243747,-504.95224312,0.00013698,2]
[329937651,1718848243757,-586.23,0.00013698,2]
[329937652,1718848243766,-507.89790623,0.00013698,2]
[329937655,1718848243775,-502.19879431,0.00013698,2]
[329937658,1718848243787,-505.98511797,0.00013698,2]
[329937659,1718848243795,-504.03122472,0.00013698,2]
[329937660,1718848243804,-1010.13,0.00013698,2]
[329937661,1718848243813,-502.2915301,0.00013698,2]
[329937662,1718848243822,-509.21704037,0.00013698,2]
[329937663,1718848243831,-500.0,0.00013698,2]
[329937664,1718848243841,-500.0,0.00013698,2]
[329937665,1718848243850,-1112.94,0.00013698,2]
[329937666,1718848243860,-507.60750728,0.00013698,2]
[329937667,1718848243870,-511.93109649,0.00013698,2]
[329937668,1718848243880,-506.84135314,0.00013698,2]
[329937669,1718848243890,-500.0,0.00013698,2]
[329937670,1718848243899,-512.54159958,0.00013698,2]
[329937671,1718848243909,-500.0,0.00013698,2]
[329937672,1718848243919,-500.0,0.00013698,2]
[329937673,1718848243929,-500.0,0.00013698,2]
[329937674,1718848243938,-500.0,0.00013698,2]
[329937675,1718848243948,-501.87534611,0.00013698,2]
[329937676,1718848243957,-500.0,0.00013698,2]
[329937677,1718848243967,-500.0,0.00013698,2]
[329937678,1718848243976,-501.49676053,0.00013698,2]
[329937679,1718848243985,-502.3312414,0.00013698,2]
[329937680,1718848243994,-503.3154629,0.00013698,2]
[329937681,1718848244004,-500.0,0.00013698,2]
[329937682,1718848244014,-508.28,0.00013698,2]
[329937683,1718848244023,-276.46720917,0.00013698,2]
[329937684,1718848244033,-500.0,0.00013698,2]
[329937685,1718848244042,-504.41289793,0.00013698,2]
[329937686,1718848244052,-878.05,0.00013698,2]
[329937687,1718848244062,-500.0,0.00013698,2]
[329937688,1718848244071,-500.0,0.00013698,2]
[329937689,1718848244080,-500.0,0.00013698,2]
[329937690,1718848244090,-501.25228948,0.00013698,2]
[329937691,1718848244099,-504.61269108,0.00013698,2]
[329937692,1718848244108,-937.64,0.00013698,2]
[329937693,1718848244117,-505.68820803,0.00013698,2]
[329937694,1718848244128,-500.0,0.00013698,2]
[329937695,1718848244137,-507.62792554,0.00013698,2]
[329937696,1718848244147,-500.0,0.00013698,2]
[329937697,1718848244156,-501.40976064,0.00013698,2]
[329937698,1718848244165,-509.39862604,0.00013698,2]